bitfinex/quotes_ETHUSD_20251119
["timestamp","ask_amount","ask_price","bid_price","bid_amount"]
[1763582565110,0.89439195,2888.1,2886.6,0.4711]
[1763582565291,1.98776473,2888.1,2886.6,0.4711]
[1763582565493,0.3526,2888.0,2886.6,0.4711]
[1763582565713,1.09337278,2888.0,2886.6,0.4711]
[1763582565887,0.3526,2888.0,2886.6,0.4711]
[1763582566092,0.55137647,2887.9,2886.6,0.4711]
[1763582566493,0.3526,2887.8,2886.6,0.4711]
[1763582567792,1.25959264,2887.8,2886.2,0.405504]
[1763582568002,1.09337278,2887.7,2886.2,0.405504]
[1763582568206,0.20003654,2887.6,2886.1,0.6635]
[1763582568519,0.3771,2886.2,2886.1,0.001]
[1763582568816,0.3771,2886.2,2885.6,0.001]
[1763582568817,0.89663253,2886.1,2885.6,0.001]
[1763582569014,7.68432681,2885.8,2885.6,0.001]
[1763582569203,8.6208694,2885.8,2885.6,0.001]
[1763582569410,8.9718694,2885.8,2885.6,0.001]
[1763582569997,1.09724259,2885.7,2885.4,0.001]
[1763582570195,0.1919,2885.5,2885.4,0.001]
[1763582570599,0.5445,2885.5,2885.4,0.001]
[1763582571306,1.28278491,2885.5,2885.4,0.001]
[1763582573120,1.28278491,2885.5,2884.5,0.001]
[1763582573300,0.90699264,2885.2,2884.5,0.001]
[1763582573637,0.85913195,2885.1,2884.5,0.001]
[1763582574090,0.1709,2884.6,2884.5,0.001]
[1763582574904,0.1709,2884.8,2884.5,0.001]
[1763582575224,0.85913195,2885.1,2884.5,0.4721]
[1763582575438,1.25959264,2885.5,2884.5,0.4721]
[1763582575439,0.3526,2885.5,2884.5,0.4721]
[1763582575651,0.90699264,2885.6,2884.5,0.4721]
[1763582575652,0.73724024,2885.6,2884.5,0.4721]
[1763582575936,1.28239435,2885.9,2884.5,0.4721]
[1763582575937,0.73724024,2885.8,2884.6,0.405504]
[1763582576102,0.3526,2885.9,2884.6,0.405504]
[1763582576103,1.08984024,2885.9,2884.6,0.405504]
[1763582576294,0.19968329,2885.8,2884.7,0.4711]
[1763582576490,0.19968329,2885.8,2884.8,0.44016844]
[1763582576701,0.19968329,2885.8,2884.9,0.4711]
[1763582576905,0.73724024,2886.1,2884.9,0.4711]
[1763582577145,0.90699264,2886.0,2884.9,0.4711]
[1763582577327,7.68432681,2885.7,2884.6,0.405504]
[1763582577699,7.68432681,2885.7,2884.5,0.001]
[1763582577913,0.80369268,2885.6,2884.6,0.405504]
[1763582578525,0.80369268,2885.6,2884.6,0.4711]
[1763582578703,2.44853553,2885.6,2884.6,0.4711]
[1763582578905,1.71068532,2885.6,2884.6,0.4711]
[1763582579223,0.80369268,2885.6,2884.6,0.4711]
[1763582579531,1.64509328,2886.0,2884.6,0.4711]
[1763582579732,1.64509328,2886.0,2884.7,0.405504]
[1763582580235,0.73810064,2886.0,2884.9,0.405504]
[1763582580443,0.73810064,2886.1,2884.9,0.405504]
[1763582580614,0.1817,2886.2,2885.0,0.4711]
[1763582580936,0.80995876,2886.2,2885.1,0.1854]
[1763582581155,0.1954,2885.1,2884.5,0.001]
[1763582581458,7.68432681,2885.7,2884.5,0.001]
[1763582581459,1.64453424,2885.6,2884.5,0.001]
[1763582581654,0.90699264,2885.2,2884.5,0.001]
[1763582582351,7.68432681,2885.3,2884.5,0.001]
[1763582582352,0.3526,2885.7,2884.5,0.4721]
[1763582582515,0.90699264,2885.6,2884.5,0.001]
[1763582582857,0.90699264,2885.2,2884.5,0.001]
[1763582583061,0.1709,2884.6,2884.5,0.001]
[1763582583551,0.3526,2885.1,2884.5,0.001]
[1763582583552,0.1709,2884.8,2884.5,0.001]
[1763582584500,0.89439195,2885.5,2884.5,0.001]
[1763582584635,0.1709,2884.9,2884.5,0.001]
[1763582585274,0.3526,2885.4,2884.5,0.4721]
[1763582585572,0.90699264,2885.3,2884.5,0.001]
[1763582585936,0.1709,2884.6,2884.5,0.001]
[1763582586150,0.3663,2884.6,2884.5,0.001]
[1763582586466,0.7173,2884.6,2884.5,0.001]
[1763582586674,5.21646268,2884.6,2884.5,0.001]
[1763582587367,6.12345532,2884.6,2884.5,0.001]
[1763582587554,6.86030884,2884.6,2884.5,0.001]
[1763582587760,6.86030884,2884.6,2884.4,0.001]
[1763582587761,0.90699264,2884.5,2884.4,0.001]
[1763582588069,1.50378367,2884.5,2884.4,0.001]
[1763582588581,0.41433015,2884.5,2884.4,0.001]
[1763582588778,0.0035,2884.5,2884.4,0.001]
[1763582589069,0.1709,2884.9,2884.4,0.9274]
[1763582589271,0.73736349,2885.3,2884.4,0.9274]
[1763582589456,0.002,2885.5,2884.8,0.4533]
[1763582589855,0.002,2885.5,2884.9,0.4731]
[1763582590356,0.002,2885.5,2885.4,0.1922]
[1763582590542,0.002,2885.5,2885.4,0.6455]
[1763582590866,0.002,2885.5,2885.4,1.1186]
[1763582591234,0.002,2885.5,2884.4,0.001]
[1763582591765,0.002,2885.5,2884.9,0.597704]
[1763582593263,0.002,2885.5,2885.0,0.4731]
[1763582593451,0.002,2885.5,2885.4,0.4533]
[1763582594460,0.002,2885.5,2885.4,0.9264]
[1763582594659,0.002,2885.5,2884.9,0.1922]
[1763582594845,0.002,2885.5,2885.0,0.878604]
[1763582595053,0.002,2885.5,2884.9,0.1922]
[1763582595413,0.002,2885.5,2884.9,0.4731]
[1763582597344,0.002,2885.5,2885.4,0.1922]
[1763582597538,0.74603625,2885.5,2885.2,0.1922]
[1763582597739,0.74603625,2885.5,2885.4,0.4533]
[1763582597943,0.74603625,2885.5,2885.4,0.9264]
[1763582597944,0.002,2885.5,2885.4,0.9264]
[1763582598241,0.74603625,2885.5,2885.4,0.9264]
[1763582598448,0.002,2885.5,2885.4,0.9264]
[1763582598863,0.002,2885.5,2885.4,1.331904]
[1763582599286,0.002,2885.5,2884.4,7.70486566]
[1763582599287,0.002,2885.5,2884.6,0.4731]
[1763582599458,0.002,2885.5,2884.7,0.405504]
[1763582599664,0.74403625,2885.4,2884.7,0.405504]
[1763582600009,0.74403625,2885.3,2884.7,0.4731]
[1763582600174,0.74403625,2885.2,2884.7,0.4731]
[1763582600372,0.93004531,2885.4,2884.7,0.4731]
[1763582600373,0.74403625,2885.3,2884.7,0.4731]
[1763582600579,0.74403625,2885.4,2884.8,0.405504]
[1763582600910,0.74403625,2885.4,2885.3,0.4533]
[1763582601366,0.74403625,2885.4,2885.2,0.1922]
[1763582601797,0.93204531,2885.5,2885.2,0.1922]
[1763582602001,0.74403625,2885.4,2885.2,0.1922]
[1763582602199,1.31337964,2885.5,2885.2,0.1922]
[1763582602403,0.74403625,2885.4,2885.2,0.1922]
[1763582602698,0.002,2885.5,2885.2,0.1922]
[1763582603475,0.002,2885.5,2884.9,0.4731]
[1763582603476,0.002,2885.5,2885.0,0.405504]
[1763582603695,0.002,2885.5,2884.4,0.001]
[1763582603696,1.09863625,2885.5,2884.4,0.001]
[1763582603996,1.09863625,2885.5,2884.4,0.4741]
[1763582603997,0.93004531,2885.2,2884.4,0.4741]
[1763582604182,1.67408156,2885.1,2884.4,0.4741]
[1763582604505,1.67408156,2885.0,2884.4,0.001]
[1763582604718,0.25810742,2884.9,2884.4,0.001]
[1763582604873,0.42900742,2884.9,2884.4,0.001]
[1763582605669,0.42900742,2884.9,2884.5,0.001]
[1763582605985,1.35905273,2884.9,2884.5,0.001]
[1763582606185,0.74403625,2884.8,2884.5,0.001]
[1763582606512,0.42900742,2884.9,2884.5,0.001]
[1763582606811,0.2103089,2884.8,2884.5,0.001]
[1763582608406,0.5629089,2884.8,2884.5,0.001]
[1763582608735,0.1954,2884.6,2884.5,0.001]
[1763582608874,0.2103089,2884.8,2884.5,0.001]
[1763582609387,0.95434515,2884.8,2884.5,0.001]
[1763582609587,0.2103089,2884.8,2884.5,0.001]
[1763582610000,0.74403625,2884.8,2884.6,0.4719]
[1763582610311,0.74403625,2884.8,2884.5,0.001]
[1763582610312,0.93004531,2885.1,2884.5,0.001]
[1763582610531,0.93004531,2885.1,2884.5,0.4729]
[1763582610819,1.67408156,2885.2,2884.5,0.4729]
[1763582610978,0.93004531,2885.2,2884.5,0.4729]
[1763582611337,0.74403625,2885.3,2884.5,0.4729]
[1763582611482,0.31072188,2885.2,2884.5,0.001]
[1763582612389,0.93004531,2885.1,2884.5,0.001]
[1763582612782,2.36053795,2885.0,2884.5,0.001]
[1763582613110,0.3526,2884.6,2884.5,0.001]
[1763582613479,1.69700911,2884.6,2884.5,0.001]
[1763582613733,0.5715638,2884.6,2884.5,0.001]
[1763582614012,1.31560005,2884.6,2884.5,0.001]
[1763582614176,0.5715638,2884.6,2884.5,0.001]
[1763582614375,0.96300005,2884.6,2884.5,0.001]
[1763582614578,0.2189638,2884.6,2884.5,0.001]
[1763582614776,0.74403625,2884.7,2884.5,0.454]
[1763582614991,0.93004531,2884.9,2884.5,0.454]
[1763582614992,0.74403625,2884.8,2884.5,0.9259]
[1763582615186,0.74403625,2884.9,2884.5,0.9259]
[1763582615397,1.07789264,2885.0,2884.5,0.001]
[1763582615598,0.97118036,2884.9,2884.5,0.001]
[1763582615804,1.71521661,2884.9,2884.5,0.001]
[1763582616008,0.74403625,2884.8,2884.5,0.001]
[1763582616208,0.90699264,2884.8,2884.5,0.001]
[1763582616376,1.65102889,2884.8,2884.5,0.001]
[1763582616583,0.3526,2884.6,2884.5,0.001]
[1763582617179,1.09926171,2884.7,2884.5,0.001]
[1763582618318,1.45339264,2884.6,2884.5,0.001]
[1763582618526,0.93943625,2884.6,2884.5,0.001]
[1763582618689,2.0277206,2884.7,2884.5,0.001]
[1763582618883,0.29347132,2884.6,2884.5,0.001]
[1763582619306,1.76843021,2884.6,2884.5,0.001]
[1763582619515,0.29347132,2884.6,2884.5,0.001]
[1763582619730,0.92845889,2885.1,2884.5,0.93]
[1763582620027,1.23026907,2885.3,2884.6,0.4734]
[1763582620028,0.92845889,2885.3,2884.6,0.4734]
[1763582620394,0.92845889,2885.3,2884.6,0.929]
[1763582620793,1.21870241,2885.3,2884.7,0.4556]
[1763582620994,0.29024352,2885.3,2884.7,0.4556]
[1763582621594,0.92845889,2885.4,2884.7,0.4556]
[1763582621798,0.74370722,2885.5,2884.7,0.4556]
[1763582621997,0.002,2885.5,2884.7,0.4556]
[1763582623383,0.002,2885.0,2884.8,0.405504]
[1763582623905,0.002,2885.0,2884.5,0.001]
[1763582623906,0.002,2885.0,2884.9,1.334504]
[1763582624489,0.002,2885.0,2884.9,0.929]
[1763582626195,0.002,2885.0,2884.9,1.334504]
[1763582626624,0.002,2885.0,2884.9,0.929]
[1763582634163,0.3546,2885.0,2884.5,0.001]
[1763582634468,0.002,2885.0,2884.9,0.4734]
[1763582634824,0.002,2885.0,2884.6,0.4556]
[1763582636980,0.1709,2884.9,2884.5,0.001]
[1763582637197,0.1954,2884.6,2884.5,0.001]
[1763582637747,0.1709,2884.9,2884.5,0.001]
[1763582637993,0.39030661,2884.9,2884.5,0.001]
[1763582639878,0.197,2884.6,2884.5,0.001]
[1763582640388,2.38195153,2884.6,2884.5,0.001]
[1763582640599,3.12365875,2884.6,2884.5,0.001]
[1763582641192,2.19519986,2884.6,2884.5,0.001]
[1763582641392,2.87346573,2884.6,2884.5,0.001]
[1763582642597,1.84569986,2884.6,2884.5,0.001]
[1763582642899,0.74170722,2884.6,2884.5,0.001]
[1763582643081,0.74170722,2884.8,2884.5,0.001]
[1763582643280,0.1985,2884.6,2884.5,0.001]
[1763582644379,0.42016661,2884.6,2884.5,0.001]
[1763582644742,1.6966255,2884.6,2884.5,0.001]
[1763582645026,4.56599264,2884.3,2884.2,0.001]
[1763582645223,13.88704849,2884.3,2884.2,0.001]
[1763582645377,15.32019296,2884.3,2884.2,0.001]
[1763582645574,15.84084889,2884.3,2884.2,0.001]
[1763582647216,2.69550762,2884.3,2884.2,0.001]
[1763582647399,0.22166661,2884.6,2884.2,0.001]
[1763582647578,0.74244897,2884.8,2884.2,0.4566]
[1763582647990,0.39030661,2884.9,2884.2,0.4566]
[1763582648713,0.002,2885.0,2884.2,0.4566]
[1763582648877,0.002,2885.0,2884.9,0.4934]
[1763582649709,0.002,2885.0,2884.7,0.4906]
[1763582649898,0.002,2885.0,2884.4,0.4906]
[1763582650915,0.1709,2884.9,2884.2,0.001]
[1763582651089,0.002,2885.0,2884.2,0.001]
[1763582651090,0.002,2885.0,2884.2,0.4916]
[1763582651780,0.1709,2884.9,2884.2,0.4916]
[1763582652215,0.002,2885.0,2884.2,0.4916]
[1763582655409,0.002,2885.0,2884.9,0.4934]
[1763582655939,0.002,2885.0,2884.9,1.389504]
[1763582656142,0.002,2885.0,2884.9,0.4934]
[1763582656305,0.002,2885.0,2884.9,0.984]
[1763582657813,0.002,2885.0,2884.5,0.4906]
[1763582658037,0.1709,2884.9,2884.4,0.001]
[1763582658710,0.5235,2884.9,2884.4,0.001]
[1763582659357,0.1709,2884.9,2884.4,0.001]
[1763582660618,0.002,2885.0,2884.5,0.4906]
[1763582660940,0.20456934,2885.0,2884.4,0.001]
[1763582661238,0.002,2885.0,2884.4,0.001]
[1763582661610,0.002,2885.0,2884.4,0.4916]
[1763582661810,0.002,2885.0,2884.4,0.001]
[1763582662141,0.1709,2884.9,2884.4,0.001]
[1763582663042,0.002,2885.0,2884.4,0.4916]
[1763582663549,0.002,2885.0,2884.9,0.4934]
[1763582663922,0.002,2885.0,2884.9,0.984]
[1763582666867,0.002,2885.0,2884.4,0.03566925]
[1763582666868,0.002,2885.0,2884.5,0.481]
[1763582667155,0.3546,2885.0,2884.5,0.481]
[1763582667453,0.1709,2884.9,2884.4,0.001]
[1763582667619,3.8299,2884.9,2884.4,0.001]
[1763582667822,1.53376978,2884.8,2884.4,0.001]
[1763582668022,0.3526,2884.8,2884.4,0.001]
[1763582668649,0.1954,2884.5,2884.4,0.001]
[1763582669236,0.5464,2884.5,2884.4,0.001]
[1763582669760,13.33914127,2884.5,2884.4,0.001]
[1763582669923,15.32001711,2884.5,2884.4,0.001]
[1763582670272,17.03756116,2884.5,2884.4,0.001]
[1763582670806,13.37856116,2884.5,2884.4,0.001]
[1763582671099,3.56335642,2884.5,2884.4,0.001]
[1763582671299,1.84552401,2884.5,2884.4,0.001]
[1763582671508,1.45339264,2884.5,2884.4,0.001]
[1763582671712,2.19652401,2884.5,2884.4,0.001]
[1763582672970,10.42327264,2884.5,2884.4,0.001]
[1763582673393,14.48777664,2884.5,2884.4,0.001]
[1763582673591,17.29775603,2884.5,2884.4,0.001]
[1763582673792,13.23325203,2884.5,2884.4,0.001]
[1763582673993,12.9233624,2884.5,2884.4,0.001]
[1763582674298,4.34561377,2884.5,2884.4,0.001]
[1763582674511,1.84552401,2884.5,2884.4,0.001]
[1763582675313,0.90699264,2884.5,2884.4,0.001]
[1763582675707,1.65012401,2884.5,2884.4,0.001]
[1763582676187,0.90699264,2884.5,2884.4,0.001]
[1763582676617,1.65012401,2884.5,2884.4,0.001]
[1763582676816,0.90699264,2884.5,2884.4,0.001]
[1763582677021,0.25776905,2884.5,2884.4,0.001]
[1763582677220,9.68024127,2884.5,2884.4,0.001]
[1763582677520,10.74571178,2884.5,2884.4,0.001]
[1763582677816,1.97246315,2884.5,2884.4,0.001]
[1763582678017,1.22933178,2884.5,2884.4,0.001]
[1763582678185,0.32233914,2884.5,2884.4,0.001]
[1763582678391,0.32233914,2884.6,2884.4,0.001]
[1763582678719,0.32233914,2884.7,2884.4,0.001]
[1763582678905,0.59739819,2884.7,2884.4,0.001]
[1763582679414,0.32233914,2884.7,2884.6,0.4729]
[1763582679789,0.002,2884.9,2884.6,0.4729]
[1763582679983,0.002,2884.9,2884.6,0.9711]
[1763582680185,0.002,2884.9,2884.4,0.001]
[1763582680507,0.1729,2884.9,2884.4,0.4992]
[1763582680698,0.3896937,2884.9,2884.4,0.4992]
[1763582681511,0.3896937,2884.9,2884.4,0.001]
[1763582681894,0.3896937,2884.9,2884.4,0.4992]
[1763582682102,0.2187937,2884.9,2884.4,0.4992]
[1763582682592,0.002,2884.9,2884.4,0.4992]
[1763582682792,0.1729,2884.9,2884.4,0.4992]
[1763582683028,0.1954,2884.5,2884.2,0.001]
[1763582683196,0.91049264,2884.3,2884.2,0.001]
[1763582683532,1.97596315,2884.3,2884.2,0.001]
[1763582683733,7.48067516,2884.3,2884.2,0.001]
[1763582683918,4.56599264,2884.0,2883.9,0.001]
[1763582684090,13.53219347,2884.0,2883.9,0.001]
[1763582684290,15.1212527,2884.0,2883.9,0.001]
[1763582685289,13.88319347,2884.0,2883.9,0.001]
[1763582685511,15.39531874,2884.0,2883.9,0.001]
[1763582687188,15.80082274,2884.0,2883.9,0.001]
[1763582687520,15.80082274,2884.0,2882.7,0.1854]
[1763582687521,4.97149664,2883.9,2882.7,0.1854]
[1763582687723,4.97149664,2883.9,2882.4,0.1856]
[1763582687724,0.90699264,2883.8,2882.4,0.1856]
[1763582688021,0.90699264,2883.2,2882.4,0.1856]
[1763582688318,0.90699264,2883.2,2881.4,0.69626028]
[1763582688319,7.70524471,2882.9,2882.1,0.1856]
[1763582688519,0.32242475,2882.8,2882.1,0.1856]
[1763582688824,0.32242475,2882.8,2882.1,0.6338]
[1763582689222,7.88694471,2882.9,2882.1,0.6338]
[1763582689426,0.78869447,2882.8,2882.1,0.1356]
[1763582689627,0.78869447,2882.8,2882.2,0.4982]
[1763582690144,0.7410471,2883.2,2882.2,0.4982]
[1763582690440,0.32147981,2883.1,2882.2,0.4982]
[1763582690599,0.72407981,2883.1,2882.2,0.4982]
[1763582690802,0.32147975,2883.0,2882.2,0.4982]
[1763582691110,0.72407975,2883.1,2882.2,0.4982]
[1763582695128,0.32099724,2883.0,2882.2,0.4982]
[1763582695334,0.72359724,2883.1,2882.2,0.4982]
[1763582695638,0.1817,2883.0,2882.2,0.4982]
[1763582695838,0.50269724,2883.0,2882.2,0.4982]
[1763582696447,0.1817,2883.0,2882.2,0.4982]
[1763582697310,7.70524471,2882.3,2882.1,0.1856]
[1763582697519,0.77052447,2882.2,2882.1,0.1856]
[1763582697812,0.90699264,2882.6,2882.1,0.1856]
[1763582698027,0.90699264,2882.6,2882.1,1.1567]
[1763582699245,0.90699264,2882.6,2882.0,0.001]
[1763582699246,7.85114471,2882.2,2882.0,0.001]
[1763582699449,0.91099264,2882.1,2882.0,0.001]
[1763582699739,3.23545925,2882.1,2882.0,0.001]
[1763582700148,2.09355089,2882.1,2882.0,0.001]
[1763582700347,7.70524471,2882.2,2882.0,0.001]
[1763582700348,0.90699264,2882.6,2882.0,0.4739]
[1763582700550,0.32092132,2882.5,2882.0,0.001]
[1763582700762,1.06024338,2882.5,2882.0,0.001]
[1763582700941,1.14192206,2882.5,2882.0,0.001]
[1763582701255,0.73932206,2882.5,2882.0,0.001]
[1763582701457,0.1459,2882.1,2882.0,0.001]
[1763582701617,1.34253796,2882.1,2882.0,0.001]
[1763582701818,1.74253796,2882.1,2882.0,0.001]
[1763582702126,1.42171374,2882.1,2882.0,0.001]
[1763582702312,0.87581374,2882.1,2882.0,0.001]
[1763582702517,0.73902778,2882.3,2882.0,0.001]
[1763582702760,0.1459,2882.1,2882.0,0.001]
[1763582702965,1.37369088,2882.1,2882.0,0.001]
[1763582703117,1.05289264,2882.1,2882.0,0.001]
[1763582704010,1.37373152,2882.1,2882.0,0.001]
[1763582704214,0.54327315,2882.1,2882.0,0.001]
[1763582704419,0.90699264,2882.3,2882.0,0.001]
[1763582705326,1.73580166,2882.8,2882.0,0.4992]
[1763582705327,3.659,2882.7,2882.0,0.4992]
[1763582705534,2.32918374,2882.6,2882.1,0.1856]
[1763582705733,0.32075658,2882.5,2882.1,0.1856]
[1763582706335,4.96859264,2882.2,2882.0,0.001]
[1763582706652,1.46000715,2882.1,2882.0,0.001]
[1763582706854,2.06260713,2882.1,2882.0,0.001]
[1763582707025,2.21110713,2882.1,2882.0,0.001]
[1763582707228,1.66260713,2882.1,2882.0,0.001]
[1763582707428,0.32075658,2882.1,2882.0,0.001]
[1763582707660,0.90699264,2882.3,2882.0,0.001]
[1763582707661,0.32075658,2882.2,2882.0,0.001]
[1763582707864,0.74020855,2882.3,2882.1,0.1949]
[1763582708068,0.74018753,2882.5,2882.0,0.001]
[1763582708366,1.64718017,2882.7,2882.0,0.001]
[1763582708576,1.75557694,2882.6,2882.0,0.001]
[1763582708729,1.06159222,2882.5,2882.0,0.001]
[1763582708929,0.90699264,2882.3,2882.0,0.001]
[1763582709131,0.32151716,2882.2,2882.0,0.001]
[1763582709431,0.1459,2882.1,2882.0,0.001]
[1763582709633,0.39738228,2882.1,2882.0,0.001]
[1763582709956,0.7188679,2882.1,2882.0,0.001]
[1763582710158,6.42527356,2882.1,2882.0,0.001]
[1763582710358,6.42527356,2882.1,2881.8,0.001]
[1763582710359,4.56599264,2881.9,2881.8,0.001]
[1763582710652,15.08393775,2881.9,2881.8,0.001]
[1763582710853,15.48653775,2881.9,2881.8,0.001]
[1763582711224,10.49850918,2881.9,2881.8,0.001]
[1763582711429,11.42148621,2881.9,2881.8,0.001]
[1763582711629,11.56738621,2881.9,2881.8,0.001]
[1763582712362,10.64040918,2881.9,2881.8,0.001]
[1763582712741,14.29940918,2881.9,2881.8,0.001]
[1763582713164,15.5363394,2881.9,2881.8,0.001]
[1763582714464,14.69940918,2881.9,2881.8,0.001]
[1763582714672,14.29940918,2881.9,2881.8,0.001]
[1763582715435,2.78926447,2881.9,2881.8,0.001]
[1763582715746,1.96889128,2881.9,2881.8,0.001]
[1763582716247,1.96889128,2881.9,2881.8,0.4641]
[1763582716447,1.99144296,2881.9,2881.8,0.9255]
[1763582716766,0.32148562,2881.9,2881.8,0.9255]
[1763582717961,0.32148562,2882.0,2881.8,0.9255]
[1763582718145,0.32148562,2882.0,2881.9,0.4614]
[1763582718350,0.32148562,2882.0,2881.9,0.9245]
[1763582718569,0.32148562,2882.0,2881.9,0.4631]
[1763582718734,1.25102994,2882.0,2881.8,0.001]
[1763582718938,0.32148562,2881.9,2881.8,0.001]
[1763582719340,0.32148562,2881.9,2881.8,0.4641]
[1763582719740,0.46738562,2881.9,2881.8,0.001]
[1763582719971,1.25102994,2881.9,2881.8,0.001]
[1763582720177,1.99144296,2881.9,2881.8,0.001]
[1763582720345,2.4512825,2881.9,2881.8,0.001]
[1763582720547,1.52173818,2881.9,2881.8,0.001]
[1763582722146,2.45197579,2881.9,2881.8,0.001]
[1763582722373,1.52173818,2881.9,2881.8,0.001]
[1763582722847,2.42873082,2881.9,2881.8,0.001]
[1763582723046,3.66771895,2881.9,2881.8,0.001]
[1763582723243,1.99256583,2881.9,2881.8,0.9255]
[1763582723463,0.32148562,2881.9,2881.8,0.9255]
[1763582723668,0.32148562,2881.9,2881.8,0.4641]
[1763582724361,0.32148562,2881.9,2881.8,0.9255]
[1763582724561,0.5207422,2881.9,2881.8,0.4641]
[1763582725053,0.5207422,2881.9,2881.8,0.9255]
[1763582725054,0.32148562,2881.9,2881.8,0.9255]
[1763582725250,1.06189864,2881.9,2881.8,0.9255]
[1763582725452,0.32148562,2881.9,2881.8,0.9255]
[1763582725685,0.32148562,2882.0,2881.8,0.9255]
[1763582725885,0.32148562,2882.0,2881.9,0.4668]
[1763582726081,0.32148562,2882.0,2881.9,0.9511]
[1763582726383,0.32148562,2882.0,2881.9,0.4843]
[1763582726585,1.35185449,2882.0,2881.9,0.4843]
[1763582726791,0.32148562,2882.0,2881.9,0.9511]
[1763582727305,1.06189864,2882.2,2881.9,0.9511]
[1763582727602,0.32148562,2882.1,2882.0,0.4668]
[1763582727815,0.32148562,2882.2,2882.0,0.9511]
[1763582728024,0.1459,2882.1,2881.8,0.001]
[1763582728166,0.1459,2882.1,2881.7,0.001]
[1763582728167,4.56599264,2881.8,2881.7,0.001]
[1763582728368,6.17789528,2881.8,2880.8,0.1856]
[1763582728592,0.93138562,2881.2,2880.9,0.4668]
[1763582728803,1.86277125,2881.6,2880.9,0.4668]
[1763582728804,0.74041302,2881.3,2880.9,0.4668]
[1763582728996,0.74041302,2881.5,2881.2,0.6677]
[1763582729204,0.32344937,2881.4,2881.2,0.6677]
[1763582729405,0.32344937,2881.4,2881.3,0.4668]
[1763582729907,0.32344937,2881.4,2881.3,0.9511]
[1763582730201,0.32344937,2881.5,2881.3,0.9511]
[1763582730511,0.32344937,2881.5,2881.4,0.4668]
[1763582730754,0.32344937,2881.5,2881.4,0.9511]
[1763582731425,0.52297417,2881.5,2881.2,0.1844]
[1763582731586,0.52307951,2881.5,2881.2,0.1844]
[1763582731786,1.26349253,2881.5,2881.2,0.1844]
[1763582731983,1.06395124,2881.4,2881.2,0.001]
[1763582732228,0.32353822,2881.3,2881.2,0.001]
[1763582732890,0.32353822,2881.3,2881.2,0.4853]
[1763582733092,0.32353822,2881.3,2881.2,0.9521]
[1763582733427,1.06395124,2881.3,2881.2,0.9521]
[1763582733569,0.32353822,2881.3,2881.2,0.9521]
[1763582734092,0.32353822,2881.4,2881.2,0.9521]
[1763582734290,1.06395124,2881.6,2881.3,0.4668]
[1763582734610,0.52307191,2881.5,2881.3,0.9511]
[1763582735198,1.25492384,2881.4,2881.2,0.001]
[1763582735527,1.06395124,2881.3,2881.2,0.001]
[1763582735677,1.61535524,2881.3,2881.2,0.001]
[1763582735880,3.25357565,2881.3,2881.2,0.001]
[1763582736102,3.10767565,2881.3,2881.2,0.001]
[1763582737980,1.86582815,2881.3,2881.2,0.001]
[1763582738383,1.06395124,2881.3,2881.2,0.9443]
[1763582738578,1.99519886,2881.3,2881.2,0.9443]
[1763582738809,0.32353822,2881.3,2881.2,0.9443]
[1763582739204,0.32353822,2881.4,2881.2,0.9443]
[1763582739588,0.32353822,2881.4,2881.3,0.4699]
[1763582739897,0.52305811,2881.4,2881.2,0.001]
[1763582740097,1.13076751,2881.4,2881.2,0.001]
[1763582740300,0.32353822,2881.3,2881.2,0.001]
[1763582740827,0.52305811,2881.4,2881.2,0.001]
[1763582741127,0.52305811,2881.4,2881.3,0.4699]
[1763582741597,0.52305811,2881.4,2881.3,0.9433]
[1763582742226,0.66895811,2881.4,2881.2,0.001]
[1763582742382,0.21947187,2881.3,2881.2,0.001]
[1763582742730,1.06395124,2881.3,2881.2,0.001]
[1763582742913,0.32353822,2881.3,2881.2,0.4709]
[1763582743218,0.52305811,2881.4,2881.2,0.4709]
[1763582743713,0.52305811,2881.4,2881.3,0.4699]
[1763582743916,0.97734937,2881.4,2881.3,0.4699]
[1763582744083,0.74041302,2881.6,2881.3,0.9433]
[1763582744279,0.74508623,2881.6,2881.5,0.4699]
[1763582744613,0.93124762,2881.8,2881.5,0.9433]
[1763582744789,1.33675162,2881.8,2881.7,0.4699]
[1763582744990,0.405504,2881.8,2881.7,0.4699]
[1763582745193,0.93124762,2881.9,2881.7,0.9433]
[1763582745501,0.93324762,2882.0,2881.8,0.4699]
[1763582745707,0.002,2882.0,2881.9,0.4699]
[1763582746270,0.002,2882.0,2881.7,0.4734]
[1763582746565,0.59527234,2882.0,2881.4,0.4734]
[1763582746756,1.52651996,2882.0,2881.4,0.4734]
[1763582747145,2.27160619,2882.0,2881.4,0.4734]
[1763582749580,1.67633385,2881.9,2881.4,0.4734]
[1763582749782,0.93124762,2881.9,2881.4,0.4734]
[1763582749984,2.28028489,2881.9,2881.3,0.001]
[1763582750167,0.74508623,2881.8,2881.3,0.001]
[1763582750566,0.93124762,2881.7,2881.3,0.001]
[1763582750886,0.93124762,2881.7,2881.3,0.4744]
[1763582751470,1.67633385,2881.8,2881.6,0.4699]
[1763582751668,0.74531937,2881.7,2881.3,0.4744]
[1763582751878,0.93124762,2881.7,2881.3,0.4744]
[1763582752191,0.74531937,2881.8,2881.6,0.4699]
[1763582752374,0.74531937,2881.9,2881.7,0.4699]
[1763582752576,1.67856699,2882.0,2881.7,0.4699]
[1763582752758,0.93324762,2882.0,2881.7,0.4699]
[1763582752958,1.31598833,2882.0,2881.7,0.4699]
[1763582753169,2.0613077,2882.0,2881.7,0.4699]
[1763582753781,2.0613077,2882.0,2881.7,0.9433]